Cogmind - Beta 12 X1 @@@ ROGUE MODE // 2022.06.30 @ 15:06:18 Player: Plexion Result: Destroyed by S-27 Virus with Autogun Performance ------------- Evolutions (4) 2000 Regions Visited (11) 2200 Robots Destroyed (121) 605 Value Destroyed (4469) 4469 Prototype IDs (2) 40 Alien Tech Used (0) 0 Bonus (1256) 1256 TOTAL SCORE: 10570 Bonus ------- Pacifist 200 High Alert Combat Kills 233 Follower Combat Kills 570 Entered Garrisons 600 Used RIF Installer 1000 Friendly Fire -1347 Cogmind --------- Core Integrity 0/850 Matter 149/300 Energy 100/100 System Corruption 0% Temperature Cool (0) Movement Core (50) Location -6/Garrison Parts ------- > --- POWER (1) -------- (None) > --- PROPULSION (4) --- (None) > --- UTILITY (7) ------ Advanced Targeting Computer Target Analyzer > --- WEAPON (3) ------- Ripper > --- INVENTORY (5) ---- EM Disruption Field Authchip [R/Combat] Relay Coupler [Sentry] (27) Improved Datajack Peak State ------------ > --- POWER ------------ Reinforced Deuterium Engine > --- PROPULSION ------- Improved Heavy Treads Improved Heavy Treads > --- UTILITY ---------- Advanced Heat Sink Large Storage Unit Advanced Targeting Computer Hardened Heavy Armor Plating EM Disruption Field Relay Coupler [Sentry] > --- WEAPON ----------- Gauss Rifle Advanced Assault Cannon Gauss Cannon > --- INVENTORY -------- Improved Heat Sink YI-UF0's Bottomless Matter Pit Improved Target Analyzer Hardened Heavy Armor Plating Authchip [R/Combat] Authchip [R/Combat] Relay Coupler [Sentry] Gauss Rifle Hypervelocity Gauss Rifle Hypervelocity Gauss Rifle Rocket Launcher Improved Datajack Ripper [Rating: 76] Favorites ----------- Power Improved Deuterium Engine Engine Improved Deuterium Engine Power Core Light Fission Core Reactor Light Antimatter Reactor Propulsion Light Treads Treads Light Treads Leg Carbon-fiber Leg Utility Large Storage Unit Device Advanced Heat Sink Storage Large Storage Unit Processor Advanced Targeting Computer Hackware Relay Coupler [NC] Protection Hardened Heavy Armor Plating Weapon Improved Assault Rifle Energy Cannon Phase Cannon Ballistic Gun Improved Assault Rifle Ballistic Cannon Gauss Cannon Launcher Rocket Launcher Slashing Weapon Ripper Special Melee Weapon Improved Datajack Build | -11 -10 -9 -9 -8 -8 -7 -7 -7 -7 -6 -6 ------- Run | Scr Mat Mat Min Mat Gar Fac Was Fac Gar Fac Gar Slots Evolved 8 | . . 2 . 2 . 2 . . . 2 . Power . | . . . . . . . . . . . . Propulsion 2 | . . 1 . . . . . . . 1 . Utility 5 | . . 1 . 1 . 2 . . . 1 . Weapon 1 | . . . . 1 . . . . . . . Parts Attached 124 | 7 . 18 3 8 11 11 3 7 9 22 25 Power 13 | 2 . 2 . 2 . 1 . . 2 2 2 Engine 11 | 2 . 2 . 2 . 1 . . 2 1 1 Core 1 | . . . . . . . . . . 1 . Reactor 1 | . . . . . . . . . . . 1 Propulsion 24 | 2 . 5 . 2 4 2 1 . . 1 7 Treads 20 | 2 . 5 . 2 4 2 1 . . 1 3 Leg 4 | . . . . . . . . . . . 4 Wheel . | . . . . . . . . . . . . Hover . | . . . . . . . . . . . . Flight . | . . . . . . . . . . . . Utility 40 | 1 . 6 3 3 3 4 1 3 2 7 7 Device 18 | . . 4 2 . 2 . . 2 1 4 3 Storage 3 | 1 . 1 1 . . . . . . . . Processor 6 | . . . . 1 . 2 . . 1 . 2 Hackware 3 | . . . . . . . 1 . . 2 . Protection 10 | . . 1 . 2 1 2 . 1 . 1 2 Artifact . | . . . . . . . . . . . . Weapon 47 | 2 . 5 . 1 4 4 1 4 5 12 9 Energy Gun . | . . . . . . . . . . . . Energy Cannon 2 | . . . . . . . . . . 1 1 Ballistic Gun 31 | 2 . 4 . 1 3 4 . 2 3 6 6 Ballistic Cannon 2 | . . . . . . . . 2 . . . Launcher 7 | . . 1 . . 1 . . . 2 2 1 Special Weapon . | . . . . . . . . . . . . Impact Weapon . | . . . . . . . . . . . . Slashing Weapon 1 | . . . . . . . . . . . 1 Piercing Weapon . | . . . . . . . . . . . . Special Melee Weapon 4 | . . . . . . . 1 . . 3 . Unidentified Prototypes 2 | . . 1 1 . . . . . . . . Parts Lost 30 | . . 1 . . 4 2 2 . . 4 17 Power 3 | . . 1 . . . 1 . . . . 1 Propulsion 9 | . . . . . 2 . . . . 1 6 Utility 7 | . . . . . 1 . 1 . . 1 4 Weapon 11 | . . . . . 1 1 1 . . 2 6 Highest Loss Streak 9 | . . 1 . . 2 2 2 . . 4 9 To Critical Strikes 2 | . . . . . . . . . . 2 . Average Slot Usage (%) 84 | . 85 92 100 94 83 79 82 81 84 76 80 Engine 7 | . 14 10 11 9 9 6 7 7 7 5 2 Treads 19 | . 28 30 33 27 20 15 15 15 15 12 10 Device 8 | . . 13 11 5 8 7 6 3 7 8 7 Storage 8 | . 14 11 11 9 9 7 7 7 7 6 5 Processor 6 | . . . . 3 . 4 7 7 12 10 18 Hackware 1 | . . . . . . . 7 7 2 3 . Protection 7 | . . 4 11 12 8 15 7 8 7 6 5 Ballistic Gun 17 | . 28 21 22 27 26 22 14 13 7 5 14 Ballistic Cannon 4 | . . . . . . . . 8 15 12 . Naked Turns . | . . . . . . . . . . . . Heaviest Build 82 | 14 14 39 39 57 56 82 58 70 73 74 73 Greatest Support 150 | 40 40 63 63 65 97 95 95 95 95 150 115 Greatest Overweight (x) 2 | . . . . . 1 . . . . . 2 Average Overweight (x) . | . . . . . . . . . . . . Largest Inventory Capacity 15 | 8 8 15 15 15 15 15 15 15 15 15 15 Average Capacity 14 | 6 8 10 15 15 15 15 15 15 15 15 14 Most Carried 15 | 3 3 14 15 15 15 15 15 15 15 15 15 Average Carried 12 | 1 3 8 14 14 12 13 15 14 14 13 11 Final Capacity 15 | 8 8 15 15 15 15 15 15 15 15 15 5 Final Carried 15 | 3 3 14 14 15 13 15 15 15 15 11 4 Class Distribution -------------------- 26% | Scavenger-Tank 22% | Scavenger-Gunner 19% | Mutant 17% | Scavenger-Mutant 8% | Gunner 5% | Tank Dominant Class ---------------- Mutant | -10/Materials Mutant | -9/Materials Scavenger-Mutant | -9/Mines Scavenger-Tank | -8/Materials Scavenger-Tank | -8/Garrison Scavenger-Tank | -7/Factory Mutant | -7/Waste Gunner | -7/Factory Scavenger-Gunner | -7/Garrison Scavenger-Gunner | -6/Factory Scavenger-Gunner | -6/Garrison Resources | -11 -10 -9 -9 -8 -8 -7 -7 -7 -7 -6 -6 ----------- Run | Scr Mat Mat Min Mat Gar Fac Was Fac Gar Fac Gar Matter Collected 6254 | 242 . 564 373 268 2180 364 . 210 579 826 648 Remotely . | . . . . . . . . . . . . Salvage Created 4738 | . . 965 230 206 1543 268 . 42 413 431 640 Parts 224 | . . 52 15 13 71 13 . 1 15 18 26 Haulers Intercepted 7 | . . 4 . 2 . 1 . . . . . Recyclers Shooed 1 | . . 1 . . . . . . . . . Parts Field Recycled . | . . . . . . . . . . . . Retrieved Matter . | . . . . . . . . . . . . Parts Self-Destructed . | . . . . . . . . . . . . Prevented . | . . . . . . . . . . . . Kills | -11 -10 -9 -9 -8 -8 -7 -7 -7 -7 -6 -6 ------- Run | Scr Mat Mat Min Mat Gar Fac Was Fac Gar Fac Gar Combat Hostiles Destroyed 97 | . . 18 1 5 27 3 . 1 17 10 15 Guns 57 | . . 14 1 5 23 3 . 1 1 1 8 Cannons 16 | . . . . . . . . . 9 4 3 AOE 24 | . . 4 . . 4 . . . 7 5 4 Classes Destroyed 14 | . . 7 1 . 3 1 . . 1 1 . Worker 5 | . . 2 . . . 2 . . . 1 . Builder 4 | . . . . . . 1 . . . 3 . Tunneler 1 | . . . 1 . . . . . . . . Hauler 7 | . . 4 . 2 . 1 . . . . . Recycler 2 | . . 1 1 . . . . . . . . Watcher 3 | . . 2 . 1 . . . . . . . Swarmer 41 | . . 8 . 5 11 . . . 10 . 7 Grunt 32 | . . 5 1 . 8 3 . . 3 7 5 Brawler 3 | . . . . . 1 . . . 2 . . Duelist 1 | . . . . . 1 . . . . . . Sentry 13 | . . 5 . . 3 . . 1 . 1 3 Specialist 2 | . . . . . . . . . 2 . . Hunter 5 | . . . . . 3 . . . . 2 . Programmer 1 | . . . . . . . . . . 1 . Best Kill Streak 10 | . . 5 1 4 10 2 . 1 4 6 5 Combat Bots Only 10 | . . 4 1 3 10 1 . 1 4 4 5 Max Kills in Single Turn 5 | . . 4 1 2 2 1 . 1 3 5 2 Gunslinging 1 | . . . . . 1 . . . . . 1 Exploded 4 | . . 4 . . 2 . . . 3 3 2 Melee . | . . . . . . . . . . . . Uniques/NPCs Destroyed 1 | . . . 1 . . . . . . . . YI-UF0 (-9/Mines) Combat | -11 -10 -9 -9 -8 -8 -7 -7 -7 -7 -6 -6 -------- Run | Scr Mat Mat Min Mat Gar Fac Was Fac Gar Fac Gar Damage Taken 8641 | . . 796 . 68 1613 537 42 306 606 994 3679 Core 1238 | . . 66 . . 177 . . 26 108 73 788 Absorbed by Shields . | . . . . . . . . . . . . Reduced by Siege Mode 16 | . . . . . . . . . . . 16 Core Remaining (%) 86 | 100 100 . 83 . 67 . . . 80 . . Volleys Fired 339 | . . 71 12 11 108 26 . 6 28 27 50 Largest 3 | . . 2 2 3 3 3 . 3 3 3 3 Hottest 161 | . . 46 46 69 74 79 . 98 124 124 161 Shots Fired 822 | . . 141 24 33 276 76 1 18 65 67 121 Gun 699 | . . 140 24 33 270 76 1 12 23 24 96 Cannon 104 | . . . . . . . . 6 38 40 20 Launcher 19 | . . 1 . . 6 . . . 4 3 5 Special . | . . . . . . . . . . . . Kinetic 792 | . . 140 24 33 270 76 1 18 61 64 105 Thermal 11 | . . . . . . . . . . . 11 Explosive 19 | . . 1 . . 6 . . . 4 3 5 Electromagnetic . | . . . . . . . . . . . . Robot Hit Streak 38 | . . 13 9 6 38 13 13 14 18 9 14 Robot Miss Streak 7 | . . 6 4 2 5 3 . 1 2 7 2 Penetration Max 1 | . . . . . . . . . . . 1 Secondary Targets 10 | . . . 1 1 5 . . . . . 3 Max Gunslinging Chain 1 | . . . 1 1 1 . . . . . 1 Shots Hit Robots 599 | . . 101 15 20 197 58 8 15 36 52 97 Core Hits 261 | . . 41 7 10 92 24 1 3 25 26 32 Critical Kills 9 | . . 2 . . 3 . . . . . 4 Critical Parts Destroyed 11 | . . 1 . . 1 1 . . . . 8 Critical Strikes 31 | . . 3 . . 4 1 . 1 3 1 18 Destroy 24 | . . 3 . . 4 1 . . . . 16 Blast 7 | . . . . . . . . 1 3 1 2 Melee Attacks 17 | . . . . . . . 7 . . 7 3 Impact . | . . . . . . . . . . . . Slashing 3 | . . . . . . . . . . . 3 Piercing . | . . . . . . . . . . . . Sneak Attacks 7 | . . . . . . . 3 . . 4 . Combat Hostiles 3 | . . . . . . . 3 . . . . Follow-up Attacks . | . . . . . . . . . . . . Damage Inflicted 12491 | . . 1613 321 310 3526 993 20 318 1398 1936 2056 Guns 8055 | . . 1434 295 310 3073 993 20 177 206 269 1278 Cannons 1878 | . . . . . . . . 141 719 621 397 Explosions 2532 | . . 179 . . 453 . . . 473 1046 381 Melee . | . . . . . . . . . . . . Ramming 26 | . . . 26 . . . . . . . . Kinetic 9712 | . . 1434 295 310 3073 993 20 318 925 890 1454 Thermal 221 | . . . . . . . . . . . 221 Explosive 2532 | . . 179 . . 453 . . . 473 1046 381 Electromagnetic . | . . . . . . . . . . . . Impact . | . . . . . . . . . . . . Slashing . | . . . . . . . . . . . . Piercing . | . . . . . . . . . . . . Highest Corruption 15 | . 1 . . . . . 15 15 10 . . Average Corruption 10 | . 1 . . . . . 11 12 10 . . Corruption Purged 5 | . . . . . . . . 5 . . . Corruption Blocked . | . . . . . . . . . . . . Effects 63 | . . . . . . . 7 17 39 . . Message Errors 20 | . . . . . . . . 5 15 . . Matter Fused 11 | . . . . . . . 2 3 6 . . Heat Flow Errors 5 | . . . . . . . 1 1 3 . . Energy Discharges 12 | . . . . . . . 2 5 5 . . Parts Rejected 2 | . . . . . . . 1 . 1 . . Data Loss (minor) 9 | . . . . . . . . 3 6 . . Data Loss (major) 1 | . . . . . . . . . 1 . . Misfires 1 | . . . . . . . 1 . . . . Alerts 1 | . . . . . . . . . 1 . . Weapon Failures 1 | . . . . . . . . . 1 . . Overload Shots . | . . . . . . . . . . . . Overflow Damage 175 | . . . . . 31 . . . 13 82 49 Projectiles 32 | . . . . . . . . . 4 28 . Explosions 143 | . . . . . 31 . . . 9 54 49 Melee . | . . . . . . . . . . . . Knockbacks 10 | . . . . . . . . . 5 5 . Impact . | . . . . . . . . . . . . Kinetic 9 | . . . . . . . . . 4 5 . Secondary 1 | . . . . . . . . . 1 . . Self-Inflicted Damage 91 | . . . . . 46 . . . 45 . . Shots 3 | . . . . . 2 . . . 1 . . Rammed 9 | . . . 9 . . . . . . . . Targets Rammed 9 | . . . 9 . . . . . . . . Kicked . | . . . . . . . . . . . . Crushed . | . . . . . . . . . . . . Highest Temperature 336 | . . 17 . 48 336 39 66 279 241 45 256 Average Temperature 75 | . . 11 . 19 149 11 50 116 69 15 75 Received Heat Transfer 2217 | . . 321 . 9 423 255 . 18 81 60 1050 Effects 4 | . . . . . 1 . . 3 . . . Energy Bleed 1 | . . . . . 1 . . . . . . Interference 3 | . . . . . . . . 3 . . . Siege Activations 2 | . . . . . . 1 . . . . 1 Total Turns 4 | . . . . . . 1 . . . . 3 Longest Duration 3 | . . . . . . 1 . . . . 3 Robots Corrupted . | . . . . . . . . . . . . Combat Hostiles . | . . . . . . . . . . . . Parts Fried . | . . . . . . . . . . . . Impact Corruptions 1 | . . . . . . . . . 1 . . Robots Melted . | . . . . . . . . . . . . Combat Hostiles . | . . . . . . . . . . . . Parts Melted . | . . . . . . . . . . . . Heat Transferred 259 | . . . . . . . . . . . 259 Parts Sabotaged . | . . . . . . . . . . . . Parts Stolen . | . . . . . . . . . . . . Parts Stripped . | . . . . . . . . . . . . Power Chain Reactions . | . . . . . . . . . . . . Missiles Intercepted . | . . . . . . . . . . . . Alert | -11 -10 -9 -9 -8 -8 -7 -7 -7 -7 -6 -6 ------- Run | Scr Mat Mat Min Mat Gar Fac Was Fac Gar Fac Gar Peak Influence 1116 | . . 383 275 287 1116 632 94 118 505 529 323 Initial 585 | . . . 148 31 189 585 94 51 . 264 5 Average 329 | . . 222 229 153 730 488 91 64 281 165 203 Maximum Alert Level 4 | . . 1 1 1 4 2 . . 2 2 1 Low Security (%) 38 | 100 100 35 19 65 1 . 100 100 39 82 32 Level 1 32 | . . 64 80 34 14 32 . . 23 6 67 Level 2 19 | . . . . . 34 67 . . 36 10 . Level 3 8 | . . . . . 42 . . . . . . Level 4 1 | . . . . . 6 . . . . . . Level 5 . | . . . . . . . . . . . . High Security . | . . . . . . . . . . . . Max Security . | . . . . . . . . . . . . Squads Dispatched 11 | . . 2 1 1 . 2 . 1 . 4 . Investigation . | . . . . . . . . . . . . Extermination 3 | . . . . . . 1 . . . 2 . Reinforcement 5 | . . 2 . . . . . 1 . 2 . Assault 2 | . . . 1 . . 1 . . . . . Garrison 1 | . . . . 1 . . . . . . . Intercept . | . . . . . . . . . . . . Searches Triggered . | . . . . . . . . . . . . Construction Impeded . | . . . . . . . . . . . . Haulers Reinforced . | . . . . . . . . . . . . Active Scanning Responses . | . . . . . . . . . . . . Cargo Convoy Interrupts . | . . . . . . . . . . . . Stealth | -11 -10 -9 -9 -8 -8 -7 -7 -7 -7 -6 -6 --------- Run | Scr Mat Mat Min Mat Gar Fac Was Fac Gar Fac Gar Distress Signals 8 | . . 5 . 2 . 1 . . . . . Communications Jammed . | . . . . . . . . . . . . Distress Signals . | . . . . . . . . . . . . Times Spotted 170 | . 2 34 2 11 32 17 5 5 16 15 31 Peak Tracking Total 14 | . 2 6 1 5 7 7 3 3 4 4 14 Tactical Retreats 6 | . . 3 . . 2 1 . . . . . Traps | -11 -10 -9 -9 -8 -8 -7 -7 -7 -7 -6 -6 ------- Run | Scr Mat Mat Min Mat Gar Fac Was Fac Gar Fac Gar Traps Triggered 10 | . 1 . . . 2 2 . . . 1 4 Indirectly . | . . . . . . . . . . . . Trap Hack Attempts . | . . . . . . . . . . . . Triggered . | . . . . . . . . . . . . Disarmed . | . . . . . . . . . . . . Reprogrammed . | . . . . . . . . . . . . Reused . | . . . . . . . . . . . . Traps Extracted . | . . . . . . . . . . . . Installed . | . . . . . . . . . . . . Triggered . | . . . . . . . . . . . . Machines | -11 -10 -9 -9 -8 -8 -7 -7 -7 -7 -6 -6 ---------- Run | Scr Mat Mat Min Mat Gar Fac Was Fac Gar Fac Gar Machines Disabled 13 | . . . . 1 1 . . . 2 8 1 Max in Single Turn 4 | . . . . 1 1 . . . 1 4 1 Garrison Relay 4 | . . . . . 1 . . . 2 . 1 Machines Sabotaged . | . . . . . . . . . . . . Garrisons Compromised . | . . . . . . . . . . . . Overloaded Fab Kills . | . . . . . . . . . . . . Hacking | -11 -10 -9 -9 -8 -8 -7 -7 -7 -7 -6 -6 --------- Run | Scr Mat Mat Min Mat Gar Fac Was Fac Gar Fac Gar Machines Accessed 20 | . . 2 . 2 2 3 . 4 2 4 1 Terminals 16 | . . 2 . 1 2 2 . 3 2 3 1 Fabricators 1 | . . . . . . 1 . . . . . Repair Stations . | . . . . . . . . . . . . Recycling Units . | . . . . . . . . . . . . Scanalyzers . | . . . . . . . . . . . . Garrison Access 3 | . . . . 1 . . . 1 . 1 . Total Hacks 39 | . . 6 . 3 3 6 . 9 3 7 2 Successful 10 | . . 2 . 1 1 2 . 2 1 1 . Failed 29 | . . 4 . 2 2 4 . 7 2 6 2 Catastrophic 7 | . . . . . . 2 . 1 . 3 1 Database Lockouts . | . . . . . . . . . . . . Manual 21 | . . 6 . 2 . 3 . 8 . 2 . Terminals 33 | . . 6 . 2 3 3 . 8 3 6 2 Fabricators 3 | . . . . . . 3 . . . . . Repair Stations . | . . . . . . . . . . . . Recycling Units . | . . . . . . . . . . . . Scanalyzers . | . . . . . . . . . . . . Garrison Access 3 | . . . . 1 . . . 1 . 1 . Terminal Hacks 5 | . . 2 . . 1 1 . . 1 . . Robot Analysis 1 | . . 1 . . . . . . . . . Open Door 1 | . . . . . 1 . . . . . . Branch Access Points 1 | . . 1 . . . . . . . . . Unreport Threat 1 | . . . . . . 1 . . . . . Garrison Registry 1 | . . . . . . . . . 1 . . Fabricator Hacks 1 | . . . . . . 1 . . . . . Build 1 | . . . . . . 1 . . . . . Repair Station Hacks . | . . . . . . . . . . . . Recycling Unit Hacks . | . . . . . . . . . . . . Scanalyzer . | . . . . . . . . . . . . Garrison Access Hacks 3 | . . . . 1 . . . 1 . 1 . Unlock Access 3 | . . . . 1 . . . 1 . 1 . Unauthorized Hacks 1 | . . . . . . . . 1 . . . Terminals 1 | . . . . . . . . 1 . . . Botnet 1 | . . . . . . . . 1 . . . Fabricators . | . . . . . . . . . . . . Repair Stations . | . . . . . . . . . . . . Recycling Units . | . . . . . . . . . . . . Scanalyzers . | . . . . . . . . . . . . Garrison Access . | . . . . . . . . . . . . Data Cores Recovered . | . . . . . . . . . . . . Used . | . . . . . . . . . . . . Hacking Detections 18 | . . 2 . 2 1 3 . 4 2 3 1 Full Trace Events . | . . . . . . . . . . . . Feedback Events . | . . . . . . . . . . . . Feedback Blocked . | . . . . . . . . . . . . Robot Schematics Acquired . | . . . . . . . . . . . . Robots Built 3 | . . . . . . 3 . . . . . Authchips . | . . . . . . . . . . . . Time 116 | . . . . . . 116 . . . . . Total Robot Build Rating 9 | . . . . . . 9 . . . . . Part Schematics Acquired . | . . . . . . . . . . . . Parts Built . | . . . . . . . . . . . . Authchips . | . . . . . . . . . . . . Time . | . . . . . . . . . . . . Total Part Build Rating . | . . . . . . . . . . . . Parts Repaired . | . . . . . . . . . . . . Time . | . . . . . . . . . . . . Parts Recycled . | . . . . . . . . . . . . Recycled Matter . | . . . . . . . . . . . . Retrieved Matter . | . . . . . . . . . . . . Retrieved Components . | . . . . . . . . . . . . Parts Scanalyzed . | . . . . . . . . . . . . Part Schematics Acquired . | . . . . . . . . . . . . Parts Damaged . | . . . . . . . . . . . . Bothacking | -11 -10 -9 -9 -8 -8 -7 -7 -7 -7 -6 -6 ------------ Run | Scr Mat Mat Min Mat Gar Fac Was Fac Gar Fac Gar Used RIF Installer 2 | . . . . . 1 . . . 1 . . Coupler Efficiency 1 | . . . . . . . . . 1 . . Robots Hacked 7 | . . . . . . . 4 . . 3 . Non-combat 1 | . . . . . . . . . . 1 . Combat 6 | . . . . . . . 4 . . 2 . Robot Hacks Applied 12 | . . . . . . . 6 . . 6 . purge_threat 3 | . . . . . . . . . . 3 . ignore_targets 6 | . . . . . . . 6 . . . . find_garrison 1 | . . . . . . . . . . 1 . overwrite_iff 1 | . . . . . . . . . . 1 . formatsys_high 1 | . . . . . . . . . . 1 . Relay Couplers Released 18 | . . . . . 5 . . . 8 . 5 Machine Destruction 18 | . . . . . 5 . . . 8 . 5 Attached 3 | . . . . . . . 1 . . 2 . Fabnet Peak Effective % . | . . . . . . . . . . . . Robots Rewired 4 | . . . . . 2 2 . . . . . Allies Hacked . | . . . . . . . . . . . . Hacks Repelled . | . . . . . . . . . . . . Allies | -11 -10 -9 -9 -8 -8 -7 -7 -7 -7 -6 -6 -------- Run | Scr Mat Mat Min Mat Gar Fac Was Fac Gar Fac Gar Total Allies 14 | . . . 5 . 2 5 . . . 2 . Largest Group 5 | . . . 4 2 2 5 . . . 1 . Highest-Rated Group 110 | . . . 71 39 50 110 . . . 32 . Highest-Rated Ally 32 | . . . 31 31 31 32 . . . 32 . Total Orders 1 | . . . . . . . . . . 1 . STAY 1 | . . . . . . . . . . 1 . Ally Attacks 94 | . . . 17 24 7 32 . . . 14 . Total Damage 1887 | . . . 186 234 161 826 . . . 480 . Kills 24 | . . . 5 3 4 8 . . . 4 . Allies Corrupted . | . . . . . . . . . . . . Allies Melted 1 | . . . . . . 1 . . . . . Intel | -11 -10 -9 -9 -8 -8 -7 -7 -7 -7 -6 -6 ------- Run | Scr Mat Mat Min Mat Gar Fac Was Fac Gar Fac Gar Robot Analysis Total 1 | . . 1 . . . . . . . . . Derelict Logs Recovered . | . . . . . . . . . . . . Drone Launches . | . . . . . . . . . . . . Drone Recoveries . | . . . . . . . . . . . . Exploration | -11 -10 -9 -9 -8 -8 -7 -7 -7 -7 -6 -6 ------------- Run | Scr Mat Mat Min Mat Gar Fac Was Fac Gar Fac Gar Turns Passed 8293 | 78 92 1355 452 195 1655 837 143 465 906 1243 872 Spaces Moved 4166 | 44 58 632 239 86 806 437 80 258 484 654 388 Core 102 | 3 . . . . . . . . . . 99 Treads 4064 | 41 58 632 239 86 806 437 80 258 484 654 289 Legs . | . . . . . . . . . . . . Wheels . | . . . . . . . . . . . . Hover . | . . . . . . . . . . . . Flight . | . . . . . . . . . . . . Fastest Speed 50 | 50 160 160 160 155 152 160 165 165 165 160 50 Average Speed 161 | 152 160 160 160 155 157 163 165 165 165 160 165 Slowest Speed 320 | 160 160 160 160 160 232 165 165 165 165 160 320 Overloaded Moves . | . . . . . . . . . . . . Propulsion Burnouts . | . . . . . . . . . . . . Robots Hopped . | . . . . . . . . . . . . Cave-ins Triggered . | . . . . . . . . . . . . Exploration Rate (%) 39 | 4 23 54 47 12 77 18 79 11 57 18 68 Regions Visited 11 Branch Regions 1 Pre-discovered Areas . | . . . . . . . . . . . . Known Exits Taken 4 | . . 1 . 1 . . . 1 . 1 . Unknown Exits Taken 3 | 1 1 . 1 . . . . . . . . Scrap Searched . | . . . . . . . . . . . . Spaces Dug . | . . . . . . . . . . . . Terrain Destroyed 134 | . . 10 . . 13 . . 3 26 72 10 Melee . | . . . . . . . . . . . . Projectile 16 | . . . . . 1 . . 3 2 8 2 AOE 117 | . . 10 . . 12 . . . 24 64 7 Terrain Rammed . | . . . . . . . . . . . . Walls Destroyed . | . . . . . . . . . . . . Machines Disabled . | . . . . . . . . . . . . Actions | -11 -10 -9 -9 -8 -8 -7 -7 -7 -7 -6 -6 --------- Run | Scr Mat Mat Min Mat Gar Fac Was Fac Gar Fac Gar Total 5076 | 52 57 833 280 126 984 514 90 287 547 790 516 Wait 259 | . . 95 11 9 23 15 1 9 13 65 18 Move 4159 | 43 57 631 238 86 805 437 79 258 483 654 388 Hop . | . . . . . . . . . . . . Pick Up 50 | 2 . 9 3 2 9 4 . 2 5 6 8 Fast Attach 43 | 6 . 6 . 2 2 4 1 4 2 4 12 Attach 28 | . . 1 . 3 4 2 . 2 . 4 12 Detach 17 | . . . . 3 1 1 . 2 1 2 7 Swap 53 | 1 . 11 3 3 5 5 2 1 7 14 1 Drop 66 | . . 9 4 7 11 5 . 3 8 6 13 Fire 339 | . . 71 12 11 108 26 . 6 28 27 50 Melee 17 | . . . . . . . 7 . . 7 3 Ram . | . . . . . . . . . . . . Kick . | . . . . . . . . . . . . Crush 9 | . . . 9 . . . . . . . . Escape Stasis 4 | . . . . . . . . . . . 4 Rewire 32 | . . . . . 16 15 . . . 1 . Trap . | . . . . . . . . . . . . Miscellaneous . | . . . . . . . . . . . . Route ------- -11/Scrapyard -10/Materials (discovered 2 exits: *Mat / [*Min]) -9/Materials (discovered 3 exits: *Mat / *Min x2) -9/Mines -8/Materials -8/Garrison (discovered 3 exits: *Fac x3) -7/Factory (discovered 2 exits: *Fac / [*Low]) -7/Waste -7/Factory -7/Garrison (discovered 4 exits: *Fac x3 / Fac) -6/Factory (discovered 2 exits: [*Low] / Gar) -6/Garrison (discovered 2 exits: [*Fac x2]) History --------- Turn | Location | Event 35 | -11/Scrapyard | Discovered new exit (range 15) 79 | -11/Scrapyard | Entered Materials 126 | -10/Materials | Discovered new exit (range 7) 135 | -10/Materials | Discovered new exit (range 14) 171 | -10/Materials | Entered another Materials area 171 | -9/Materials | Evolved 2 slots: Propulsion x1, Utility x1 310 | -9/Materials | Build established: Mutant 322 | -9/Materials | Discovered new exit (range 5) 638 | -9/Materials | Discovered new exit (range 16) 1389 | -9/Materials | Discovered new exit (range 11) 1487 | -9/Materials | Identified exit to Mines 1526 | -9/Materials | Entered Mines 1538 | -9/Mines | Assisted by bots powering up and referring to "LRC-V3" 1600 | -9/Mines | YI-UF0 nonchalantly dropped a Grenade Launcher on the ground 1607 | -9/Mines | Received a Mining Laser from a helpful Derelict 1639 | -9/Mines | Destroyed YI-UF0 1643 | -9/Mines | Found Prototype Storage 1662 | -9/Mines | Identified YI-UF0's Bottomless Matter Pit 1951 | -9/Mines | Build established: Scavenger-Mutant 1952 | -9/Mines | Discovered new exit (range 10) 1958 | -9/Mines | Met a Derelict testing a Signal Generator 1978 | -9/Mines | Entered Materials 1978 | -8/Materials | Accompanied by 2 allies 1978 | -8/Materials | Evolved 2 slots: Utility x1, Weapon x1 2132 | -8/Materials | Garrison activated, responded to threat 2173 | -8/Materials | Identified exit to Garrison 2173 | -8/Materials | Entered Garrison 2173 | -8/Garrison | Accompanied by 1 ally 2192 | -8/Garrison | Triggered checkpoint 2286 | -8/Garrison | Build established: Scavenger-Tank 2366 | -8/Garrison | Triggered checkpoint 2429 | -8/Garrison | Triggered checkpoint 2500 | -8/Garrison | Destroyed 10 combat bots 2552 | -8/Garrison | Discovered new exit (range 13) 2622 | -8/Garrison | Triggered checkpoint 2879 | -8/Garrison | Discovered new exit (range 9) 2982 | -8/Garrison | Triggered checkpoint 3250 | -8/Garrison | Triggered checkpoint 3304 | -8/Garrison | Triggered checkpoint 3352 | -8/Garrison | Triggered checkpoint 3420 | -8/Garrison | Discovered new exit (range 14) 3478 | -8/Garrison | Triggered checkpoint 3669 | -8/Garrison | Installed Relay Interface Framework 3722 | -8/Garrison | Garrison Relay disabled 3828 | -8/Garrison | Entered Factory 3828 | -7/Factory | Accompanied by 2 allies 3828 | -7/Factory | Evolved 2 slots: Utility x2 3891 | -7/Factory | Discovered new exit (range 10) 4218 | -7/Factory | Fabricated G-47 Trooper? 4228 | -7/Factory | First assault squad dispatched 4405 | -7/Factory | Discovered new exit (range 10) 4602 | -7/Factory | Build established: Tank 4665 | -7/Factory | Sucked down chute 4665 | -7/Factory | Entered Waste 4678 | -7/Waste | Spotted C-40 Crusher 4680 | -7/Waste | EMP discharged 4680 | -7/Waste | System corruption reached 10% 4688 | -7/Waste | Spotted C-40 Crusher 4719 | -7/Waste | Spotted C-40 Crusher 4735 | -7/Waste | Spotted C-40 Crusher 4739 | -7/Waste | Spotted C-40 Crusher 4767 | -7/Waste | Spotted C-40 Crusher 4780 | -7/Waste | EMP discharged 4787 | -7/Waste | Discovered new exit (range 14) 4792 | -7/Waste | Crushed by Compactor (1 part destroyed) 4808 | -7/Waste | Entered Factory 5273 | -7/Factory | Identified exit to Garrison 5273 | -7/Factory | Entered Garrison 5321 | -7/Garrison | Triggered checkpoint 5403 | -7/Garrison | Build established: Gunner 5410 | -7/Garrison | Triggered checkpoint 5529 | -7/Garrison | Triggered checkpoint 5618 | -7/Garrison | Triggered checkpoint 5670 | -7/Garrison | Garrison Relay disabled 5740 | -7/Garrison | Discovered new exit (range 10) 5834 | -7/Garrison | Triggered checkpoint 5928 | -7/Garrison | Triggered checkpoint 6004 | -7/Garrison | Garrison Relay disabled 6057 | -7/Garrison | Discovered new exit (range 13) 6095 | -7/Garrison | Discovered new exit (range 68) 6095 | -7/Garrison | Discovered new exit (range 62) 6095 | -7/Garrison | Discovered new exit (range 16) 6095 | -7/Garrison | Discovered exit to Factory (range 55) 6129 | -7/Garrison | Expanded RIF knowledge: Coupler Efficiency 6179 | -7/Garrison | Entered Factory 6179 | -6/Factory | Evolved 2 slots: Propulsion x1, Utility x1 6363 | -6/Factory | Build established: Scavenger-Gunner 7152 | -6/Factory | Discovered new exit (range 9) 7366 | -6/Factory | Lost 4 parts (1n1u2w) 7422 | -6/Factory | Identified exit to Garrison 7422 | -6/Factory | Entered Garrison 7522 | -6/Garrison | Triggered checkpoint 7547 | -6/Garrison | Garrison Relay disabled 7680 | -6/Garrison | Triggered checkpoint 7707 | -6/Garrison | Triggered checkpoint 7709 | -6/Garrison | Triggered checkpoint 7725 | -6/Garrison | Triggered checkpoint 7783 | -6/Garrison | Lost 6 parts (2n2u2w) 7896 | -6/Garrison | Discovered new exit (range 14) 8089 | -6/Garrison | Discovered new exit (range 13) 8104 | -6/Garrison | Spotted B-90 Cyclops 8109 | -6/Garrison | Spotted B-75 Beast 8156 | -6/Garrison | Triggered checkpoint 8218 | -6/Garrison | Core integrity fell below 50% 8253 | -6/Garrison | Lost 9 parts (4n1u4w) 8268 | -6/Garrison | Core integrity fell below 20% 8294 | -6/Garrison | Destroyed by S-27 Virus with Autogun Last Messages --------------- 08208_ Coil Gun destroyed. 08211_ B-90 Cyclops exits siege mode. 08211_ Slug penetrates B-90 Cyclops. 08213_ Carbon-fiber Leg destroyed. 08215_ Slug penetrates B-90 Cyclops. 08216_ B-90 Cyclops activates siege mode. 08218_ Slug penetrates B-90 Cyclops. 08221_ Slug penetrates Wall. 08222_ Phase Cannon destroyed. 08224_ Slug penetrates B-90 Cyclops. 08227_ Slug penetrates Wall. 08230_ Dropped Lrg. Storage Unit. 08231_ Dropped Lgt. Antimatter Reactor. 08231_ Dropped Adv. Heat Sink. 08232_ Dropped Coil Gun. 08242_ Connecting with Garrison Terminal... 08268_ C-30 ARC bursts open, deploying its payload. 08268_ B-48 Gladiator unfolds itself. 08268_ G-50 Soldier unfolds itself. 08291_ Imp. Target Analyzer destroyed. Map ----- +----------------------------------------------------+ | ## #??????????????????????????????????????????? | | ## #??????????????????????????????????????????? | | ## ##?????????????????????????????????????????? | | #?????????????????????????????????????????? | | #?????????????????????????????????????????? | | " #?????????????????????????????????????????? | | #"%"#?????????????????????????????????????????? | | " ###???????????????????????????????????????? | | [ #???????????????????????????????????????? | | #???????????????????????????????????????? | | %% #???????????????????????????????????????? | | * #???????????????????????????????????????? | | ## ###???????????????????????????????????????? | | ## ############??????????????????????????????? | | #??????????????????????????????? | | " #????????###???????????????????? | | "%" #???????? #???????????????????? | | ##+"######### #???????# "???????????????????? | | ## #???????# #??????? "???????????????????? | | ## #???????# #??????? "???????????????????? | | ?# #???????# #??????? "???????????????????? | | ?# #???????# #???????# "???????????????????? | | ?# #???????# #???????# #???????????????????? | | ?# ######### ######### ######??????????????? | | ?# +s s c ##?????????????? | | ?# ; scc c@ !#?????????? | | ?###### ##### ##################?????????????? | | ??????# #???# #??????????????????????????????? | | ??????# #???# #??????????????????????????????? | | ??????# #???# #??????????????????????????????? | | ??????# #???# #??????????????????????????????? | | ?????? #???# #??????????????????????????????? | | ??????# #???# #??????????????????????????????? | | ??????# #???# #??????????????????????????????? | | ??????? ????" #??????????????????????????????? | | ??????? ????" #??????????????????????????????? | | ??????? ????" #??????????????????????????????? | | ??????? ????# #??????????????????????????????? | | ??????? ????# #??????????????????????????????? | | ??????? ????# #??????????????????????????????? | | ??????? ????# #??????????????????????????????? | | ????????????? ???????????????????????????????? | | ????????????? ???????????????????????????????? | | ???????????????????????????????????????????????? | | ???????????????????????????????????????????????? | | ???????????????????????????????????????????????? | | ???????????????????????????????????????????????? | | ???????????????????????????????????????????????? | | ???????????????????????????????????????????????? | | ???????????????????????????????????????????????? | +----------------------------------------------------+ Best States ------------- Heat Dissipation 75 Energy Generation 21 Energy Capacity 290 Matter Stores 300 Matter Capacity 300 Sight Range 16 Terrain Scan Density 10 Armor Coverage 1200 Resistance: EM 25 Phase Shifting 5 Evasion (%) 50 Targeting Accuracy 8 Target Analysis 8 Armor Integrity Analysis 30 Recoil Reduction 4 Relay Coupler Types 1 Relay Coupler Value 36 Authchip Count 2 Item Schematics ----------------- None Robot Schematics ------------------ None Fabricated ------------ G-47 Trooper | x3 | -7/Factory | Preloaded Alien Tech Used ----------------- None Achievements -------------- None Challenges ------------ None Game ------ Seed ShockMassSplitter Manual? 0 Play Time 00:57:21 Cumulative 245.3 hours Start 2022.06.30 @ 14:07:59 End 2022.06.30 @ 15:06:18 Sessions 1 Manual Loads 0 Difficulty Rogue Special Mode None Game No. 343 Rogue 256 Adventurer 87 Explorer 0 Win Type - Total 5 Types 3/0/1/1/0/0/0/0/0 Lore% 69 Gallery% 77 Achievement% 67 Wizard Run 0 Options --------- ASCII 0 Keyboard 1 Movement Numpad Keybinds 0 Fullscreen 1 Font 18/Smallcaps Map View 76x50 Tactical HUD 1 Map Filters NONE Filters NONE Steam 1 RUN: eef71ed4-5d8e-483f-926d-b64751308353